bitfinex/quotes_ETHUSD_20250929
["timestamp","ask_amount","ask_price","bid_price","bid_amount"]
[1759140454187,0.0004,4145.1,4145.0,0.002]
[1759140455961,7.85463695,4145.1,4145.0,0.002]
[1759140456150,12.01646757,4145.1,4145.0,0.002]
[1759140456548,12.39490965,4145.1,4145.0,0.002]
[1759140457347,7.64395973,4145.1,4145.0,0.002]
[1759140457550,5.2314727,4145.1,4145.0,0.002]
[1759140457748,3.37884208,4145.1,4145.0,0.002]
[1759140457960,5.79132911,4145.1,4145.0,0.002]
[1759140458175,8.83032911,4145.1,4145.0,0.002]
[1759140458381,7.10864208,4145.1,4145.0,0.002]
[1759140458744,6.86524208,4145.1,4145.0,0.002]
[1759140458945,6.41784208,4145.1,4145.0,0.002]
[1759140459172,6.41704208,4145.1,4145.0,0.002]
[1759140459680,9.27742911,4145.1,4145.0,0.002]
[1759140459883,10.98153393,4145.1,4145.0,0.002]
[1759140461583,3.41744208,4145.1,4145.0,0.002]
[1759140462448,4.14313938,4145.1,4145.0,0.002]
[1759140463345,8.8940893,4145.1,4145.0,0.002]
[1759140463569,14.98317633,4145.1,4145.0,0.002]
[1759140463997,14.60473425,4145.1,4145.0,0.002]
[1759140464206,16.78154251,4145.1,4145.0,0.002]
[1759140465894,18.23354251,4145.1,4145.0,0.002]
[1759140466295,16.78254251,4145.1,4145.0,0.002]
[1759140466508,16.78354251,4145.1,4145.0,0.002]
[1759140466707,17.16201924,4145.1,4145.0,0.002]
[1759140468719,13.44541924,4145.1,4145.0,0.002]
[1759140468885,0.7266973,4145.1,4145.0,0.6902]
[1759140469093,6.17918433,4145.1,4145.0,0.2405]
[1759140469305,9.62708433,4145.1,4145.0,0.002]
[1759140469822,9.17918433,4145.1,4145.0,0.002]
[1759140469986,6.7666973,4145.1,4145.0,0.6902]
[1759140470302,9.17918433,4145.1,4145.0,0.002]
[1759140471204,9.85578433,4145.1,4145.0,0.002]
[1759140471504,11.49003542,4145.1,4145.0,0.002]
[1759140472005,11.26133542,4145.1,4145.0,0.002]
[1759140472708,10.81343542,4145.1,4145.0,0.002]
[1759140477045,15.56438534,4145.1,4145.0,0.002]
[1759140477245,13.93013425,4145.1,4145.0,0.002]
[1759140478052,14.60673425,4145.1,4145.0,0.002]
[1759140478917,14.37803425,4145.1,4145.0,0.002]
[1759140479841,9.62708433,4145.1,4145.0,0.002]
[1759140480009,14.37803425,4145.1,4145.0,0.002]
[1759140480212,15.63204534,4145.1,4145.0,0.002]
[1759140481220,14.90634804,4145.1,4145.0,0.002]
[1759140481810,15.58294804,4145.1,4145.0,0.002]
[1759140482373,16.33200798,4145.1,4145.0,0.002]
[1759140484088,16.33120798,4145.1,4145.0,0.002]
[1759140485056,16.70968054,4145.1,4145.0,0.002]
[1759140486262,16.03308054,4145.1,4145.0,0.002]
[1759140486451,16.70968054,4145.1,4145.0,0.002]
[1759140487281,16.03308054,4145.1,4145.0,0.002]
[1759140487583,16.48098054,4145.1,4145.0,0.002]
[1759140487882,16.70968054,4145.1,4145.0,0.002]
[1759140493886,16.03308054,4145.1,4145.0,0.002]
[1759140495588,15.65460798,4145.1,4145.0,0.002]
[1759140495903,5.41268703,4145.1,4145.0,0.002]
[1759140496194,5.41268703,4145.1,4145.0,0.6956]
[1759140496195,8.44668703,4145.1,4145.0,0.6956]
[1759140498398,8.82513306,4145.1,4145.0,0.6956]
[1759140501499,6.41264603,4145.1,4145.0,0.6956]
[1759140501834,8.82513306,4145.1,4145.0,0.002]
[1759140502618,8.82513306,4145.1,4145.0,0.2456]
[1759140506129,8.82513306,4145.1,4145.0,0.002]
[1759140508905,8.82433306,4145.1,4145.0,0.002]
[1759140513825,8.82433306,4145.1,4145.0,0.002]
[1759140514023,3.37784603,4145.1,4145.0,0.002]
[1759140514224,6.0334,4145.1,4145.0,2.1458]
[1759140514519,2.9994,4145.1,4145.0,2.1458]
[1759140514720,0.001,4145.5,4145.0,2.1458]
[1759140514936,0.001,4145.5,4145.1,0.6936]
[1759140514937,3.034,4145.4,4145.1,0.6936]
[1759140515132,3.034,4145.4,4145.2,0.6936]
[1759140515337,8.44631244,4145.4,4145.3,0.6936]
[1759140516133,6.034,4145.4,4145.3,0.6936]
[1759140518769,8.44631244,4145.4,4145.3,0.6936]
[1759140519233,0.001,4145.5,4145.3,0.6936]
[1759140519426,0.001,4145.5,4145.4,2.22006]
[1759140519826,0.001,4145.5,4145.4,0.7007]
[1759140520057,0.001,4145.5,4145.4,17.61301244]
[1759140522178,0.001,4145.5,4145.4,18.40501244]
[1759140525241,0.001,4145.5,4145.4,21.43901244]
[1759140526160,0.001,4145.5,4145.4,21.43801244]
[1759140530994,0.001,4145.5,4145.4,23.83505653]
[1759140534063,0.0002,4145.5,4145.4,23.83505653]
[1759140534352,0.0002,4145.5,4145.4,28.06505653]
[1759140535196,0.0002,4145.5,4145.4,23.53935653]
[1759140535374,0.6882,4145.5,4145.4,5.44531244]
[1759140535572,0.0002,4145.5,4145.4,3.033]
[1759140535779,0.6882,4145.5,4145.4,3.033]
[1759140535978,0.6882,4145.5,4145.4,2.41231244]
[1759140536412,0.4407,4145.5,4145.4,2.41231244]
[1759140536780,0.4407,4145.5,4145.4,16.91231244]
[1759140537013,0.0002,4145.5,4145.4,16.91231244]
[1759140537179,0.0002,4145.5,4145.4,17.533]
[1759140537180,0.6882,4145.5,4145.4,17.533]
[1759140537380,0.6882,4145.5,4145.4,14.5]
[1759140540984,0.0002,4145.5,4145.4,16.91231244]
[1759140541184,0.0002,4145.5,4145.4,14.5]
[1759140541907,0.4407,4145.5,4145.4,14.5]
[1759140542295,0.6882,4145.5,4145.4,14.5]
[1759140542500,1.30722099,4145.5,4145.1,0.002]
[1759140542934,1.30722099,4145.5,4145.1,14.502]
[1759140543105,0.688,4145.4,4145.1,16.91447559]
[1759140543426,0.0002,4145.5,4145.4,2.41231244]
[1759140544196,0.0002,4145.5,4145.3,2.41235744]
[1759140544395,0.0002,4145.5,4145.3,2.65735744]
[1759140544809,0.0002,4145.5,4145.4,14.5]
[1759140545933,0.6882,4145.5,4145.4,14.5]
[1759140546131,1.23214866,4145.5,4145.4,14.5]
[1759140546353,4.26514866,4145.5,4145.1,0.002]
[1759140546551,7.74928657,4145.2,4145.1,0.002]
[1759140546902,8.43728657,4145.2,4145.1,0.002]
[1759140548506,10.8497154,4145.2,4145.1,0.002]
[1759140548715,12.54583467,4145.2,4145.1,0.002]
[1759140549123,12.64259876,4145.2,4145.1,0.002]
[1759140549635,14.09359876,4145.2,4145.1,0.002]
[1759140551063,12.64259876,4145.2,4145.1,0.002]
[1759140552065,12.64259876,4145.2,4145.0,0.002]
[1759140552247,10.02272094,4145.1,4145.0,0.002]
[1759140552729,10.71752094,4145.1,4145.0,0.002]
[1759140554036,11.09602927,4145.1,4145.0,0.002]
[1759140555333,2.41271985,4144.7,4144.2,0.002]
[1759140555533,14.91152587,4144.3,4144.2,0.002]
[1759140555848,18.48847453,4144.3,4144.2,0.002]
[1759140556169,19.65423096,4144.3,4144.2,0.002]
[1759140556539,14.90494439,4144.3,4144.2,0.002]
[1759140558471,19.65423096,4144.3,4144.2,0.002]
[1759140558850,19.65343096,4144.3,4144.2,0.002]
[1759140559871,19.27487351,4144.3,4144.2,0.002]
[1759140562746,19.6534478,4144.3,4144.2,0.002]
[1759140562978,19.27487351,4144.3,4144.2,0.002]
[1759140563190,19.6534478,4144.3,4144.2,0.002]
[1759140565978,21.1044478,4144.3,4144.2,0.002]
[1759140569980,21.1044478,4144.3,4143.6,0.002]
[1759140569981,3.20506918,4144.1,4143.6,0.002]
[1759140570188,10.69006918,4144.1,4143.6,0.002]
[1759140570625,11.38046918,4144.1,4143.6,0.002]
[1759140571115,11.47728268,4144.1,4143.6,0.002]
[1759140572823,11.47728268,4144.1,4143.7,0.002]
[1759140575134,10.78688268,4144.1,4143.7,0.002]
[1759140575423,12.82581659,4144.1,4143.7,0.002]
[1759140575836,13.05451659,4144.1,4143.7,0.002]
[1759140581747,12.82581659,4144.1,4143.7,0.002]
[1759140582155,12.36411659,4144.1,4143.7,0.002]
[1759140582316,13.06601659,4144.1,4143.7,0.002]
[1759140583955,12.82581659,4144.1,4143.7,0.002]
[1759140585376,13.06771659,4144.1,4143.7,0.002]
[1759140585670,12.82581659,4144.1,4143.7,0.002]
[1759140586860,12.36331659,4144.1,4143.7,0.2453]
[1759140587068,13.29316925,4144.1,4144.0,0.6746]
[1759140589541,18.04245582,4144.1,4144.0,0.6746]
[1759140589930,13.29316925,4144.1,4144.0,0.6746]
[1759140590270,18.4210089,4144.1,4144.0,0.6746]
[1759140590474,20.50450514,4144.1,4144.0,0.6746]
[1759140590843,20.50550514,4144.1,4144.0,0.6746]
[1759140591174,15.75621857,4144.1,4144.0,0.6746]
[1759140594645,20.50550514,4144.1,4144.0,0.2453]
[1759140594873,20.50550514,4144.1,4144.0,0.6746]
[1759140596244,15.75621857,4144.1,4144.0,0.6746]
[1759140597178,20.50550514,4144.1,4144.0,0.002]
[1759140598382,15.75621857,4144.1,4144.0,0.002]
[1759140600483,15.37766549,4144.1,4144.0,0.002]
[1759140601292,23.07185206,4144.1,4144.0,0.002]
[1759140601854,22.83245206,4144.1,4144.0,0.002]
[1759140602054,23.07185206,4144.1,4144.0,0.002]
[1759140603785,23.45043907,4144.1,4144.0,0.002]
[1759140604379,19.45525805,4144.1,4144.0,0.002]
[1759140608601,18.75235805,4144.1,4144.0,0.002]
[1759140609106,18.75155805,4144.1,4144.0,0.002]
[1759140609304,19.20655805,4144.1,4144.0,0.002]
[1759140610187,19.44345805,4144.1,4144.0,0.002]
[1759140613699,19.20655805,4144.1,4144.0,0.002]
[1759140615003,18.75155805,4144.1,4144.0,0.002]
[1759140619521,15.71855805,4144.1,4144.0,0.6984]
[1759140619692,18.75055805,4144.1,4144.0,0.2514]
[1759140619894,18.75055805,4144.1,4144.0,0.6984]
[1759140620094,18.75055805,4144.1,4144.0,0.002]
[1759140623909,19.44035805,4144.1,4144.0,0.002]
[1759140625932,19.20225805,4144.1,4144.0,0.002]
[1759140627137,19.44035805,4144.1,4144.0,0.002]
[1759140627433,18.75055805,4144.1,4144.0,0.002]
[1759140628805,19.20225805,4144.1,4144.0,0.002]
[1759140629540,18.75055805,4144.1,4144.0,0.002]
[1759140633844,18.74975805,4144.1,4144.0,0.002]
[1759140636243,18.74975805,4144.1,4144.0,0.2514]
[1759140637722,18.74975805,4144.1,4144.0,0.002]
[1759140638747,15.71775805,4144.1,4144.0,0.002]
[1759140638947,18.74875805,4144.1,4144.0,0.002]
[1759140639348,18.74875805,4144.1,4144.0,0.6762]
[1759140639534,5.88786969,4144.1,4144.0,0.6762]
[1759140639717,8.54028268,4144.1,4144.0,0.6762]
[1759140639917,14.0436748,4144.1,4144.0,0.6762]
[1759140640451,14.0436748,4144.1,4144.0,0.2484]
[1759140642527,14.2850748,4144.1,4144.0,0.002]
[1759140642722,14.42223984,4144.1,4144.0,0.4298]
[1759140642923,16.12999917,4144.1,4144.0,0.2484]
[1759140648866,16.12999917,4144.1,4144.0,0.6762]
[1759140649169,14.42223984,4144.1,4144.0,0.6762]
[1759140651272,14.42223984,4144.1,4144.0,0.2484]
[1759140652273,14.42223984,4144.1,4144.0,0.002]
[1759140654574,17.35723984,4144.1,4144.0,0.002]
[1759140658375,16.66523984,4144.1,4144.0,0.002]
[1759140658600,18.57315918,4144.1,4144.0,0.002]
[1759140658745,19.26435918,4144.1,4144.0,0.002]
[1759140660086,18.57235918,4144.1,4144.0,0.002]
[1759140660982,17.78035918,4144.1,4144.0,0.002]
[1759140661190,17.78035918,4144.1,4144.0,0.6762]
[1759140661191,8.53848268,4144.1,4144.0,0.6762]
[1759140662260,5.50848268,4144.1,4144.0,0.6762]
[1759140662452,8.53848268,4144.1,4144.0,0.6762]
[1759140664556,8.91702946,4144.1,4144.0,0.6762]
[1759140664756,3.47396028,4144.1,4144.0,0.6762]
[1759140664957,3.1278135,4144.1,4144.0,0.6762]
[1759140665456,6.1278135,4144.1,4144.0,0.6762]
[1759140666069,8.54088268,4144.1,4144.0,0.6762]
[1759140666389,8.54088268,4144.1,4144.0,15.1762]
[1759140666555,6.1278135,4144.1,4144.0,15.1762]
[1759140666751,8.54088268,4144.1,4144.0,15.1762]
[1759140667297,0.0978135,4144.1,4144.0,16.69402]
[1759140667467,0.001,4144.1,4144.0,16.69402]
[1759140668366,2.41406918,4144.1,4144.0,16.69402]
[1759140669694,0.001,4144.1,4144.0,16.69402]
[1759140675405,0.001,4144.1,4144.0,16.26622]
[1759140675573,0.001,4144.1,4144.0,16.72982]
[1759140677895,0.001,4144.1,4144.0,16.01982]
[1759140678204,0.001,4144.1,4144.0,16.73192]
[1759140683833,0.0002,4144.1,4144.0,16.73192]
[1759140693418,0.0002,4144.1,4144.0,14.7505]
[1759140694933,0.0002,4144.1,4144.0,0.2505]
[1759140695531,0.0002,4144.1,4144.0,14.7505]
[1759140696604,0.0002,4144.1,4144.0,14.502]
[1759140698329,0.0002,4144.1,4144.0,0.002]
[1759140701108,0.0002,4144.1,4144.0,1.52361]
[1759140701337,0.0002,4144.1,4144.0,2.22361]
[1759140701715,0.0002,4144.1,4144.0,0.702]
[1759140701915,0.0002,4144.1,4144.0,15.202]
[1759140708855,6.16922536,4144.3,4144.0,15.202]
[1759140709032,6.16922536,4144.3,4144.0,14.9681]
[1759140709234,6.16922536,4144.3,4144.1,0.2339]
[1759140710421,5.4433595,4144.3,4144.1,0.2339]
[1759140712657,5.4433595,4144.3,4144.2,14.5]
[1759140712862,5.9114595,4144.3,4144.2,14.5]
[1759140713054,3.4985,4144.3,4144.2,14.5]
[1759140713467,3.0304,4144.3,4144.2,16.7202]
[1759140713837,3.0304,4144.3,4144.2,16.2541]
[1759140714036,0.0004,4144.3,4144.2,14.5]
[1759140714240,0.0004,4144.3,4144.2,15.2]
[1759140714651,0.0004,4144.3,4144.2,17.61301095]
[1759140714867,0.0004,4144.3,4144.2,20.63901095]
[1759140715163,0.0004,4144.3,4144.2,20.5434189]
[1759140716430,0.0004,4144.3,4144.2,22.95642985]
[1759140717164,0.0004,4144.3,4144.2,20.5434189]
[1759140721190,0.0004,4144.3,4144.2,22.95642985]
[1759140721389,0.0004,4144.3,4144.2,20.5434189]
[1759140721692,0.0004,4144.3,4144.2,22.95642985]
[1759140727760,0.0004,4144.3,4144.2,20.5434189]
[1759140727958,0.0004,4144.3,4144.2,16.8174189]
[1759140728198,0.676,4144.3,4144.2,19.8424189]
[1759140728492,0.0004,4144.3,4144.2,19.8424189]
[1759140728881,0.0004,4144.3,4144.2,20.0763189]
[1759140729694,0.0004,4144.3,4144.2,19.8424189]
[1759140729996,0.0004,4144.3,4144.2,20.0859189]
[1759140730995,0.0004,4144.3,4144.2,22.93592985]
[1759140731294,0.0004,4144.3,4144.2,20.6429189]
[1759140731481,0.0004,4144.3,4144.2,23.05592985]
[1759140732955,0.0004,4144.3,4144.2,20.6429189]
[1759140733783,0.0006,4144.6,4144.2,20.6429189]
[1759140734003,0.0006,4144.6,4144.3,2.55589486]
[1759140734213,0.0006,4144.6,4144.4,3.024]
[1759140735129,0.0006,4144.6,4144.3,2.55589486]
[1759140735419,0.0006,4144.6,4144.4,3.024]
[1759140735580,0.4301,4144.6,4144.4,3.024]
[1759140735781,0.6742,4144.6,4144.4,3.024]
[1759140736722,0.4301,4144.6,4144.4,3.024]
[1759140736907,0.4301,4144.6,4144.4,5.04418949]
[1759140737219,0.4301,4144.6,4144.4,2.02018949]
[1759140737623,0.0006,4144.6,4144.2,14.62]
[1759140737792,0.6736,4144.5,4144.2,17.644]
[1759140738119,0.7257763,4144.5,4144.2,17.644]
[1759140738287,5.49753125,4144.3,4144.1,0.002]
[1759140738487,3.10270171,4144.2,4144.1,0.002]
[1759140738720,3.77630171,4144.2,4144.1,0.002]
[1759140738894,3.89830171,4144.2,4144.1,0.002]
[1759140742614,6.92230171,4144.2,4144.1,0.002]
[1759140742931,9.92230171,4144.2,4144.1,0.002]
[1759140744131,7.50929076,4144.2,4144.1,0.002]
[1759140744333,9.92230171,4144.2,4144.1,0.002]
[1759140746632,9.67820171,4144.2,4144.1,0.002]
[1759140746840,9.92230171,4144.2,4144.1,0.002]
[1759140748117,15.41983296,4144.2,4144.1,0.002]
[1759140749658,15.79837146,4144.2,4144.1,0.002]
[1759140749865,15.41983296,4144.2,4144.1,0.002]
[1759140752515,15.79840606,4144.2,4144.1,0.002]
[1759140752722,2.41316829,4144.0,4143.7,0.002]
[1759140752939,10.91077513,4143.8,4143.7,0.002]
[1759140753345,11.68118723,4143.8,4143.7,0.002]
[1759140755828,8.68118723,4143.8,4143.7,0.002]
[1759140756653,8.00758723,4143.8,4143.7,0.002]
[1759140756835,11.03158723,4143.8,4143.7,0.2519]
[1759140758455,11.03158723,4143.8,4143.7,0.7002]
[1759140758456,8.61834335,4143.8,4143.7,0.7002]
[1759140758656,0.0960121,4143.8,4143.7,0.7002]
[1759140761772,0.0960121,4143.8,4143.7,15.2002]
[1759140761963,0.0960121,4143.8,4143.7,16.72062]
[1759140762771,2.50925598,4143.8,4143.7,16.72062]
[1759140763976,0.0960121,4143.8,4143.7,16.72062]
[1759140764677,0.0960121,4143.8,4143.7,2.22062]
[1759140764864,0.0960121,4143.8,4143.7,0.7002]
[1759140765048,2.50925598,4143.8,4143.7,0.7002]
[1759140765248,2.50925598,4143.8,4143.7,15.2002]
[1759140765880,8.00678723,4143.8,4143.7,14.502]
[1759140766048,8.00678723,4143.8,4143.7,0.002]
[1759140767969,9.82604913,4143.8,4143.7,0.002]
[1759140768180,10.05484913,4143.8,4143.7,0.002]
[1759140768496,11.50584913,4143.8,4143.7,0.002]
[1759140768691,10.05484913,4143.8,4143.7,0.002]
[1759140771790,2.41330212,4143.7,4143.6,0.002]
[1759140772004,7.22683042,4143.7,4143.6,0.002]
[1759140772296,2.41336036,4143.6,4143.5,1e-08]
[1759140772689,3.07386036,4143.6,4143.5,1e-08]
[1759140772890,3.17068112,4143.6,4143.5,1e-08]
[1759140773085,4.7601854,4143.6,4143.5,1e-08]
[1759140773409,5.13881358,4143.6,4143.5,1e-08]
[1759140778408,4.47831358,4143.6,4143.5,0.23240001]
[1759140778608,2.51018112,4143.6,4143.5,0.68580001]
[1759140778814,11.03071237,4143.6,4143.5,1e-08]
[1759140779297,11.03071237,4143.6,4143.5,0.23240001]
[1759140779728,11.03071237,4143.6,4143.5,0.68580001]
[1759140780192,11.03071237,4143.6,4143.5,0.23240001]
[1759140780910,11.03071237,4143.6,4143.5,1e-08]
[1759140781229,12.3752083,4143.6,4143.5,1e-08]
[1759140781898,12.3752083,4143.6,4143.5,0.23240001]
[1759140782097,12.27838754,4143.6,4143.5,0.23240001]
[1759140782610,12.27838754,4143.6,4143.5,1e-08]
[1759140783333,10.93389161,4143.6,4143.5,1e-08]
[1759140783522,10.93309161,4143.6,4143.5,1e-08]
[1759140785038,10.93309161,4143.6,4143.1,0.002]
[1759140785199,7.9111246,4143.2,4143.1,0.002]
[1759140785404,10.9341246,4143.2,4143.1,0.002]
[1759140785604,11.5946246,4143.2,4143.1,0.002]
[1759140785804,11.9732826,4143.2,4143.1,0.002]
[1759140786005,13.37409704,4143.2,4143.1,0.002]
[1759140786320,2.41365161,4143.1,4143.0,0.002]
[1759140786707,3.07415161,4143.1,4143.0,0.002]
[1759140787230,5.43665161,4143.1,4143.0,0.6878]
[1759140788313,10.19308546,4143.1,4143.0,0.6878]
[1759140793143,10.19308546,4143.1,4143.0,0.002]
[1759140793627,10.19308546,4143.1,4143.0,0.2288]
[1759140794439,10.19308546,4143.1,4143.0,0.002]
[1759140795812,10.19408546,4143.1,4143.0,0.002]
[1759140796341,10.19408546,4143.1,4143.0,0.2288]
[1759140798356,10.19408546,4143.1,4143.0,0.002]
[1759140800554,10.19408546,4143.1,4143.0,0.2288]
[1759140801153,10.19408546,4143.1,4143.0,0.002]
[1759140802156,10.19408546,4143.1,4143.0,0.2288]
[1759140803457,7.17108546,4143.1,4143.0,0.2288]
[1759140803624,10.19408546,4143.1,4143.0,0.2288]
[1759140806547,7.17108546,4143.1,4143.0,0.2288]
[1759140806740,10.19308546,4143.1,4143.0,0.2288]
[1759140806944,7.17108546,4143.1,4143.0,0.2288]
[1759140807260,10.19308546,4143.1,4143.0,0.2288]
[1759140807648,10.19308546,4143.1,4143.0,0.002]
[1759140807850,10.86548546,4143.1,4143.0,0.002]
[1759140808054,10.62168546,4143.1,4143.0,0.002]
[1759140808431,10.19308546,4143.1,4143.0,0.002]
[1759140808631,10.19228546,4143.1,4143.0,0.002]
[1759140811733,0.001,4143.1,4143.0,0.7009]
[1759140811944,3.023,4143.1,4143.0,0.7009]
[1759140812238,5.43665161,4143.1,4143.0,0.002]
[1759140813442,7.06889637,4143.1,4143.0,0.002]
[1759140813647,7.49749637,4143.1,4143.0,0.002]
[1759140814282,7.72629637,4143.1,4143.0,0.002]
[1759140815280,7.05389637,4143.1,4143.0,0.002]
[1759140815474,7.72629637,4143.1,4143.0,0.002]
[1759140816082,7.05389637,4143.1,4143.0,0.002]
[1759140816281,7.48249637,4143.1,4143.0,0.002]
[1759140816451,7.72629637,4143.1,4143.0,0.002]
[1759140817879,7.48249637,4143.1,4143.0,0.002]
[1759140818083,0.2298,4143.1,4143.0,0.002]
[1759140818283,5.43665161,4143.1,4143.0,0.7009]
[1759140819066,10.19308546,4143.1,4143.0,0.7009]
[1759140819650,5.43665161,4143.1,4143.0,0.2288]
[1759140819981,7.77943385,4143.1,4143.0,0.6592]
[1759140820288,10.19308546,4143.1,4143.0,0.6592]
[1759140820451,10.19308546,4143.1,4143.0,0.2288]
[1759140820650,7.77943385,4143.1,4143.0,0.2288]
[1759140820851,10.19308546,4143.1,4143.0,0.6592]
[1759140822583,7.77943385,4143.1,4143.0,0.6592]
[1759140822883,10.19308546,4143.1,4143.0,0.6592]
[1759140823087,7.77943385,4143.1,4143.0,0.6592]
[1759140824483,7.77943385,4143.1,4143.0,0.002]
[1759140824484,11.25992885,4143.1,4143.0,0.002]
[1759140824684,11.96102885,4143.1,4143.0,0.002]
[1759140826658,11.71972885,4143.1,4143.0,0.002]
[1759140826984,11.25992885,4143.1,4143.0,0.2374]
[1759140827661,7.17108546,4143.1,4143.0,0.2374]
[1759140827991,10.19308546,4143.1,4143.0,0.6678]
[1759140828361,10.19308546,4143.1,4143.0,0.2374]
[1759140829290,0.001,4143.1,4143.0,0.6678]
[1759140829991,0.001,4143.1,4143.0,14.7374]
[1759140830160,3.023,4143.1,4143.0,15.1678]
[1759140831494,7.77943385,4143.1,4143.0,15.1678]
[1759140833594,7.77863385,4143.1,4143.0,15.1678]
[1759140834292,10.19228546,4143.1,4143.0,14.502]
[1759140836090,10.19228546,4143.1,4143.0,0.002]
[1759140836391,12.2240805,4143.1,4143.0,0.002]
[1759140836562,12.32090643,4143.1,4143.0,0.002]
[1759140838592,11.61980643,4143.1,4143.0,0.002]
[1759140839600,12.32090643,4143.1,4143.0,0.002]
[1759140841066,3.11902593,4143.1,4143.0,0.6678]
[1759140841312,5.43585161,4143.1,4143.0,0.6678]
[1759140842571,6.13695161,4143.1,4143.0,0.002]
[1759140842880,5.43585161,4143.1,4143.0,0.002]
[1759140843669,6.13695161,4143.1,4143.0,0.002]
[1759140844313,7.53442399,4143.1,4143.0,0.002]
[1759140845475,7.91307033,4143.1,4143.0,0.002]
[1759140846578,8.15047033,4143.1,4143.0,0.002]
[1759140848317,13.65541371,4143.1,4143.0,0.002]
[1759140849523,11.55684133,4143.1,4143.0,0.2477]
[1759140849811,6.12118972,4143.1,4143.0,0.6879]
[1759140849971,8.52614338,4143.1,4143.0,0.6879]
[1759140853848,8.52614338,4143.1,4143.0,0.2477]
[1759140854046,8.52614338,4143.1,4143.0,0.7002]
[1759140858556,3.021,4143.1,4143.0,0.7002]
[1759140860443,5.43465161,4143.1,4143.0,0.2477]
[1759140860650,5.43465161,4143.1,4143.0,0.002]
[1759140861265,3.021,4143.1,4143.0,0.002]
[1759140862165,3.021,4143.1,4143.0,0.2418]
[1759140863352,3.022,4143.1,4143.0,0.2418]
[1759140864367,3.022,4143.1,4143.0,0.002]
[1759140864737,3.022,4143.1,4143.0,0.2418]
[1759140865168,5.43565161,4143.1,4143.0,0.2418]
[1759140865369,3.022,4143.1,4143.0,0.2418]
[1759140865869,5.43565161,4143.1,4143.0,0.2418]
[1759140867172,5.43565161,4143.1,4143.0,0.002]
[1759140869171,3.022,4143.1,4143.0,0.002]
[1759140869503,3.022,4143.1,4143.0,0.6943]
[1759140870232,0.001,4143.1,4143.0,2.96894084]
[1759140870547,0.001,4143.1,4143.0,3.42144084]
[1759140870949,0.001,4143.1,4143.0,15.50773097]
[1759140878993,0.001,4143.1,4142.8,0.002]
[1759140879195,0.001,4143.1,4142.8,0.4732]
[1759140879694,0.001,4143.1,4142.8,2.8870239]
[1759140879868,0.001,4143.1,4143.0,0.002]
[1759140880064,0.2343,4143.1,4143.0,0.002]
[1759140883413,0.0002,4143.1,4143.0,0.002]
[1759140884207,0.2335,4143.1,4143.0,0.002]
[1759140887110,0.0002,4143.1,4143.0,0.002]
[1759140887609,0.0002,4143.1,4143.0,0.7152]
[1759140890142,0.0002,4143.1,4143.0,3.15304696]
[1759140890306,0.0002,4143.1,4143.0,5.15752763]
[1759140890624,0.0002,4143.1,4143.0,5.13339054]
[1759140890820,0.0002,4143.1,4143.0,3.12890987]
[1759140891139,0.0002,4143.1,4143.0,20.67204696]
[1759140891331,0.0002,4143.1,4143.0,20.64790987]
[1759140901642,0.0002,4143.1,4143.0,16.91570987]
[1759140901842,0.0002,4143.1,4143.0,19.93470987]
[1759140902168,0.0002,4143.1,4143.0,22.25307947]
[1759140902575,0.0002,4143.1,4143.0,19.23407947]
[1759140902763,0.0002,4143.1,4143.0,22.25307947]
[1759140905258,0.0002,4143.1,4143.0,16.8203696]
[1759140905463,0.2335,4143.1,4143.0,17.521]
[1759140905962,0.2335,4143.1,4143.0,19.93470987]
[1759140907251,0.0002,4143.1,4143.0,19.93470987]
[1759140908181,0.0002,4143.1,4143.0,20.64790987]
[1759140908388,0.0004,4143.6,4143.4,2.4134738]
[1759140908567,0.0004,4143.6,4143.3,3.018]
[1759140908762,0.0004,4143.6,4143.4,5.5514325]
[1759140908961,0.0004,4143.6,4143.5,14.5]
[1759140909264,0.0004,4143.6,4143.5,16.9134186]
[1759140909466,0.0004,4143.6,4143.5,19.70566185]
[1759140911164,0.0004,4143.6,4143.5,17.29224325]
[1759140911378,0.0004,4143.6,4143.5,19.70566185]
[1759140914798,0.0004,4143.6,4143.5,19.03856185]
[1759140915406,0.0004,4143.6,4143.5,19.27176185]
[1759140917712,0.0004,4143.6,4143.5,14.62]
[1759140918002,0.6802,4143.6,4143.5,17.638]
[1759140918369,0.2405,4143.6,4143.5,20.0514186]
[1759140918571,0.0004,4143.6,4143.5,20.0514186]
[1759140918776,0.0004,4143.6,4143.5,17.638]
[1759140918999,0.2405,4143.6,4143.5,17.638]
[1759140919210,0.2405,4143.6,4143.0,0.002]
[1759140919211,0.6802,4143.6,4143.0,0.002]
[1759140919512,4.75316307,4143.2,4143.0,0.002]
[1759140919685,0.54343631,4143.5,4143.0,2.4157018]
[1759140919885,0.2401,4143.4,4143.0,2.4157018]
[1759140920107,0.96608707,4143.3,4143.0,0.002]
[1759140920311,0.96608707,4143.3,4143.0,2.41570829]
[1759140920495,0.72598707,4143.3,4143.0,2.41570829]
[1759140920812,0.2401,4143.2,4143.1,14.5]
[1759140921107,0.2401,4143.4,4143.1,14.62]
[1759140921294,0.4401,4143.6,4143.1,14.62]
[1759140921295,0.6798,4143.3,4143.1,14.62]
[1759140921496,0.2401,4143.2,4143.1,14.62]
[1759140922203,0.2401,4143.2,4143.1,17.03365161]
[1759140922796,0.72594842,4143.5,4143.1,14.62]
[1759140923001,0.72594842,4143.5,4143.3,2.41352692]
[1759140923201,0.96604842,4143.5,4143.3,2.41352692]
[1759140923783,0.96604842,4143.5,4143.2,2.41358316]
[1759140923983,0.96604842,4143.5,4143.1,17.03365036]